[Event "*** Titled Tuesday Blitz"]
[Site "Chess.com"]
[Date "2020.05.12"]
[Round "2"]
[White "CrushingKings"]
[Black "jaskol95"]
[Result "1/2-1/2"]
[WhiteElo "2459"]
[BlackElo "2263"]
[TimeControl "180+1"]
[EndTime "10:20:36 PDT"]
[Termination "Game drawn - insufficient material"]

1. e4 {[%clk 0:03:00.9]} 1... e6 {[%clk 0:02:59]} 2. Nf3 {[%clk 0:03:01.1]} 2...
d5 {[%clk 0:02:59.1]} 3. Nc3 {[%clk 0:03:01.6]} 3... Nf6 {[%clk 0:02:59.6]} 4.
e5 {[%clk 0:03:01.7]} 4... Nfd7 {[%clk 0:03:00.1]} 5. d4 {[%clk 0:03:01.8]} 5...
c5 {[%clk 0:03:00.7]} 6. dxc5 {[%clk 0:03:02.4]} 6... Nc6 {[%clk 0:03:00.4]} 7.
Bf4 {[%clk 0:03:02.8]} 7... Bxc5 {[%clk 0:03:00.5]} 8. Bd3 {[%clk 0:03:03.2]}
8... f6 {[%clk 0:03:01.1]} 9. exf6 {[%clk 0:03:03.5]} 9... Nxf6 {[%clk
0:03:01.8]} 10. O-O {[%clk 0:03:01.7]} 10... O-O {[%clk 0:03:01.8]} 11. Bg3
{[%clk 0:03:01.4]} 11... Bd7 {[%clk 0:02:50.8]} 12. Qe2 {[%clk 0:03:00.9]} 12...
Nd4 {[%clk 0:02:45.8]} 13. Nxd4 {[%clk 0:03:00.7]} 13... Bxd4 {[%clk 0:02:46.7]}
14. Nd1 {[%clk 0:03:01.3]} 14... Qe7 {[%clk 0:02:40.6]} 15. c3 {[%clk
0:03:00.8]} 15... Bb6 {[%clk 0:02:39.1]} 16. Be5 {[%clk 0:02:54.2]} 16... Be8
{[%clk 0:02:21.2]} 17. Ne3 {[%clk 0:02:52.3]} 17... Bh5 {[%clk 0:02:18.7]} 18.
Qc2 {[%clk 0:02:41.3]} 18... h6 {[%clk 0:01:57.1]} 19. Rae1 {[%clk 0:02:39.6]}
19... Bxe3 {[%clk 0:01:39.9]} 20. Rxe3 {[%clk 0:02:38.9]} 20... Ng4 {[%clk
0:01:39.7]} 21. Ree1 {[%clk 0:02:38.3]} 21... Nxe5 {[%clk 0:01:39.8]} 22. Rxe5
{[%clk 0:02:37.4]} 22... Bf7 {[%clk 0:01:29.9]} 23. Qe2 {[%clk 0:02:34.8]} 23...
Qf6 {[%clk 0:01:28.3]} 24. f4 {[%clk 0:02:27.8]} 24... Rae8 {[%clk 0:01:16.2]}
25. Bc2 {[%clk 0:02:21]} 25... Bg6 {[%clk 0:01:11.6]} 26. Ba4 {[%clk 0:02:19.1]}
26... Re7 {[%clk 0:01:08]} 27. Qe3 {[%clk 0:02:19.1]} 27... Be4 {[%clk
0:00:56.3]} 28. Bb5 {[%clk 0:02:08.8]} 28... a6 {[%clk 0:00:55.8]} 29. Bd3
{[%clk 0:02:08.9]} 29... Bxd3 {[%clk 0:00:54.3]} 30. Qxd3 {[%clk 0:02:09.8]}
30... Ref7 {[%clk 0:00:52.5]} 31. Qe3 {[%clk 0:02:09]} 31... Re7 {[%clk
0:00:47.5]} 32. g3 {[%clk 0:02:07.2]} 32... g6 {[%clk 0:00:46.4]} 33. Re1 {[%clk
0:02:06.9]} 33... Rfe8 {[%clk 0:00:41.5]} 34. Qb6 {[%clk 0:02:07.4]} 34... Kg7
{[%clk 0:00:39.7]} 35. Kg2 {[%clk 0:02:01.8]} 35... h5 {[%clk 0:00:40]} 36. h4
{[%clk 0:02:01]} 36... Qf7 {[%clk 0:00:38.6]} 37. Qb4 {[%clk 0:01:48]} 37... Qf6
{[%clk 0:00:38.4]} 38. a4 {[%clk 0:01:47.5]} 38... Kf7 {[%clk 0:00:38]} 39. a5
{[%clk 0:01:47.5]} 39... Rc8 {[%clk 0:00:34.8]} 40. Qb6 {[%clk 0:01:36.3]} 40...
Rc6 {[%clk 0:00:24.6]} 41. Qd8 {[%clk 0:01:36]} 41... Re8 {[%clk 0:00:25]} 42.
Qxf6+ {[%clk 0:01:24]} 42... Kxf6 {[%clk 0:00:23.3]} 43. Rxd5 {[%clk 0:01:24.3]}
43... exd5 {[%clk 0:00:22.1]} 44. Rxe8 {[%clk 0:01:25.2]} 44... Rc5 {[%clk
0:00:20.5]} 45. Rb8 {[%clk 0:01:22.8]} 45... Rb5 {[%clk 0:00:20.9]} 46. b4
{[%clk 0:01:20.7]} 46... d4 {[%clk 0:00:21.1]} 47. cxd4 {[%clk 0:01:21.3]} 47...
Rxb4 {[%clk 0:00:21.3]} 48. Kf3 {[%clk 0:01:19]} 48... Kf5 {[%clk 0:00:05.6]}
49. Rf8+ {[%clk 0:01:17.6]} 49... Ke6 {[%clk 0:00:06.2]} 50. Ke4 {[%clk
0:01:15.2]} 50... Ra4 {[%clk 0:00:05.6]} 51. Rb8 {[%clk 0:01:13.6]} 51... Rxa5
{[%clk 0:00:05.3]} 52. Rxb7 {[%clk 0:01:13.8]} 52... Ra3 {[%clk 0:00:05.3]} 53.
Rb6+ {[%clk 0:01:13.6]} 53... Kf7 {[%clk 0:00:05.6]} 54. d5 {[%clk 0:01:12.7]}
54... Rxg3 {[%clk 0:00:04.1]} 55. Ke5 {[%clk 0:01:12.8]} 55... Re3+ {[%clk
0:00:03.8]} 56. Kd6 {[%clk 0:01:12.9]} 56... Rf3 {[%clk 0:00:02.8]} 57. Rb7+
{[%clk 0:01:07.4]} 57... Kf6 {[%clk 0:00:02.9]} 58. Rb8 {[%clk 0:01:07.5]} 58...
Kf5 {[%clk 0:00:01.9]} 59. Rf8+ {[%clk 0:01:06.9]} 59... Kg4 {[%clk 0:00:02.5]}
60. Kd7 {[%clk 0:01:06.5]} 60... Rd3 {[%clk 0:00:02.6]} 61. d6 {[%clk
0:01:06.9]} 61... Kxh4 {[%clk 0:00:03]} 62. Kc7 {[%clk 0:01:06.3]} 62... Rc3+
{[%clk 0:00:01.8]} 63. Kd8 {[%clk 0:01:06.4]} 63... Kg3 {[%clk 0:00:02.3]} 64.
d7 {[%clk 0:01:06.2]} 64... h4 {[%clk 0:00:02.8]} 65. Rf6 {[%clk 0:01:05.6]}
65... Rd3 {[%clk 0:00:03]} 66. Ke7 {[%clk 0:01:05]} 66... Rxd7+ {[%clk
0:00:02.4]} 67. Kxd7 {[%clk 0:01:05.3]} 67... h3 {[%clk 0:00:02.6]} 68. Rxa6
{[%clk 0:00:32.4]} 68... h2 {[%clk 0:00:03]} 69. Ra3+ {[%clk 0:00:31.5]} 69...
Kg2 {[%clk 0:00:02.1]} 70. Ra2+ {[%clk 0:00:31.1]} 70... Kg3 {[%clk 0:00:02.5]}
71. Ra3+ {[%clk 0:00:31.5]} 71... Kg2 {[%clk 0:00:02.7]} 72. Ra1 {[%clk
0:00:31.9]} 72... h1=Q {[%clk 0:00:02.2]} 73. Rxh1 {[%clk 0:00:32]} 73... Kxh1
{[%clk 0:00:03.1]} 74. Ke6 {[%clk 0:00:32.8]} 74... Kg2 {[%clk 0:00:03.7]} 75.
Kf6 {[%clk 0:00:32]} 75... Kf3 {[%clk 0:00:04.1]} 76. Kg5 {[%clk 0:00:32.3]}
76... Ke4 {[%clk 0:00:04.1]} 77. Kg4 {[%clk 0:00:32.4]} 77... Kd5 {[%clk
0:00:04.3]} 78. Kh4 {[%clk 0:00:32.3]} 78... Ke4 {[%clk 0:00:03.7]} 79. Kg5
{[%clk 0:00:31.8]} 79... Kf3 {[%clk 0:00:04.1]} 80. f5 {[%clk 0:00:30.3]} 80...
gxf5 {[%clk 0:00:05]} 81. Kxf5 {[%clk 0:00:30.3]} 1/2-1/2

[Event "*** Titled Tuesday Blitz"]
[Site "Chess.com"]
[Date "2020.05.12"]
[Round "3"]
[White "LogoCzar"]
[Black "Buffy7"]
[Result "1-0"]
[WhiteElo "2437"]
[BlackElo "2682"]
[TimeControl "180+1"]
[EndTime "10:22:07 PDT"]
[Termination "LogoCzar won by resignation"]

1. e4 {[%clk 0:03:00.9]} 1... c5 {[%clk 0:03:00.2]} 2. Nf3 {[%clk 0:02:59.5]}
2... d6 {[%clk 0:03:00.8]} 3. d4 {[%clk 0:02:59.4]} 3... cxd4 {[%clk 0:03:01.7]}
4. Nxd4 {[%clk 0:03:00.3]} 4... Nf6 {[%clk 0:03:02.3]} 5. Nc3 {[%clk 0:03:00.8]}
5... Nc6 {[%clk 0:03:03]} 6. Bc4 {[%clk 0:03:01]} 6... Qb6 {[%clk 0:02:59.9]} 7.
Nb3 {[%clk 0:03:00.8]} 7... e6 {[%clk 0:02:59.6]} 8. Bf4 {[%clk 0:03:00.7]} 8...
Ne5 {[%clk 0:02:56.9]} 9. Be2 {[%clk 0:03:00.5]} 9... a6 {[%clk 0:02:54.2]} 10.
Be3 {[%clk 0:02:59.1]} 10... Qc7 {[%clk 0:02:54.3]} 11. f4 {[%clk 0:02:59.3]}
11... Nc4 {[%clk 0:02:54.2]} 12. Bxc4 {[%clk 0:02:59.7]} 12... Qxc4 {[%clk
0:02:55.1]} 13. Qf3 {[%clk 0:03:00.1]} 13... Bd7 {[%clk 0:02:49.5]} 14. O-O-O
{[%clk 0:02:56.5]} 14... Bc6 {[%clk 0:02:46.3]} 15. Rd4 {[%clk 0:02:54.7]} 1-0

[Event "*** Titled Tuesday Blitz"]
[Site "Chess.com"]
[Date "2020.05.12"]
[Round "3"]
[White "Off-War"]
[Black "TST2014"]
[Result "0-1"]
[WhiteElo "2745"]
[BlackElo "2582"]
[TimeControl "180+1"]
[EndTime "10:23:20 PDT"]
[Termination "TST2014 won by checkmate"]

1. d4 {[%clk 0:02:59.5]} 1... Nf6 {[%clk 0:02:59.6]} 2. c4 {[%clk 0:03:00]} 2...
d6 {[%clk 0:02:57]} 3. Nc3 {[%clk 0:03:00.3]} 3... e5 {[%clk 0:02:56.2]} 4. Nf3
{[%clk 0:02:59.3]} 4... Nbd7 {[%clk 0:02:53.6]} 5. e4 {[%clk 0:02:59.7]} 5... g6
{[%clk 0:02:51.1]} 6. Be2 {[%clk 0:02:57.5]} 6... Bg7 {[%clk 0:02:51.1]} 7. O-O
{[%clk 0:02:56]} 7... O-O {[%clk 0:02:51]} 8. Be3 {[%clk 0:02:56.6]} 8... Ng4
{[%clk 0:02:48.4]} 9. Bg5 {[%clk 0:02:56.1]} 9... f6 {[%clk 0:02:48.9]} 10. Bc1
{[%clk 0:02:55.2]} 10... f5 {[%clk 0:02:39.1]} 11. Bg5 {[%clk 0:02:52.2]} 11...
Bf6 {[%clk 0:02:38.5]} 12. Bxf6 {[%clk 0:02:52]} 12... Qxf6 {[%clk 0:02:30.2]}
13. Nd5 {[%clk 0:02:51.4]} 13... Qd8 {[%clk 0:02:29.7]} 14. exf5 {[%clk
0:02:52]} 14... gxf5 {[%clk 0:02:29.5]} 15. b4 {[%clk 0:02:43]} 15... c6 {[%clk
0:02:28.9]} 16. Nc3 {[%clk 0:02:41.6]} 16... e4 {[%clk 0:02:25.5]} 17. Nd2
{[%clk 0:02:42]} 17... Ndf6 {[%clk 0:02:22.6]} 18. Nb3 {[%clk 0:02:41]} 18... d5
{[%clk 0:02:17.1]} 19. cxd5 {[%clk 0:02:40.4]} 19... cxd5 {[%clk 0:02:16.4]} 20.
Qd2 {[%clk 0:02:38.8]} 20... Qd6 {[%clk 0:02:07.6]} 21. Nb5 {[%clk 0:02:39.1]}
21... Qxh2# {[%clk 0:02:07.1]} 0-1

[Event "*** Titled Tuesday Blitz"]
[Site "Chess.com"]
[Date "2020.05.12"]
[Round "3"]
[White "przemekpiotrowski"]
[Black "giantslayer83"]
[Result "0-1"]
[WhiteElo "2423"]
[BlackElo "2712"]
[TimeControl "180+1"]
[EndTime "10:23:42 PDT"]
[Termination "giantslayer83 won by resignation"]

1. d4 {[%clk 0:03:00.9]} 1... Nf6 {[%clk 0:02:59.7]} 2. Nf3 {[%clk 0:03:01.1]}
2... g6 {[%clk 0:02:59.6]} 3. g3 {[%clk 0:03:01.5]} 3... Bg7 {[%clk 0:02:59.6]}
4. Bg2 {[%clk 0:03:02.1]} 4... O-O {[%clk 0:03:00.5]} 5. O-O {[%clk 0:03:02.4]}
5... d6 {[%clk 0:02:57.5]} 6. c4 {[%clk 0:03:02.5]} 6... c5 {[%clk 0:02:56.6]}
7. Nc3 {[%clk 0:03:02.4]} 7... Nc6 {[%clk 0:02:53.8]} 8. dxc5 {[%clk 0:03:02.2]}
8... dxc5 {[%clk 0:02:53.6]} 9. Be3 {[%clk 0:03:02.3]} 9... Be6 {[%clk 0:02:36]}
10. Bxc5 {[%clk 0:02:44.7]} 10... Bxc4 {[%clk 0:02:35.3]} 11. Qa4 {[%clk
0:02:44.8]} 11... Ba6 {[%clk 0:02:29.6]} 12. Rfd1 {[%clk 0:02:44.8]} 12... Qc8
{[%clk 0:02:21.2]} 13. Rac1 {[%clk 0:02:44.1]} 13... Qf5 {[%clk 0:02:20.4]} 14.
e4 {[%clk 0:02:24]} 14... Qxc5 {[%clk 0:02:19.1]} 15. Nd5 {[%clk 0:02:16.3]}
15... Qb5 {[%clk 0:02:14.3]} 16. Qxb5 {[%clk 0:02:08.1]} 16... Bxb5 {[%clk
0:02:15.2]} 17. Nc7 {[%clk 0:02:08.7]} 17... Be2 {[%clk 0:02:15.1]} 0-1

[Event "*** Titled Tuesday Blitz"]
[Site "Chess.com"]
[Date "2020.05.12"]
[Round "3"]
[White "AnkitGajwa"]
[Black "gmcorrales"]
[Result "0-1"]
[WhiteElo "2434"]
[BlackElo "2787"]
[TimeControl "180+1"]
[EndTime "10:23:49 PDT"]
[Termination "gmcorrales won by resignation"]

1. e4 {[%clk 0:02:58.5]} 1... c5 {[%clk 0:02:57.8]} 2. Nf3 {[%clk 0:02:57.5]}
2... d6 {[%clk 0:02:58.1]} 3. d4 {[%clk 0:02:57]} 3... cxd4 {[%clk 0:02:59]} 4.
Nxd4 {[%clk 0:02:52]} 4... Nf6 {[%clk 0:02:59.5]} 5. Nc3 {[%clk 0:02:52.1]} 5...
a6 {[%clk 0:02:59.4]} 6. Bg5 {[%clk 0:02:52.6]} 6... e6 {[%clk 0:02:59.4]} 7. f4
{[%clk 0:02:53.2]} 7... h6 {[%clk 0:03:00]} 8. Bh4 {[%clk 0:02:53.2]} 8... Qb6
{[%clk 0:03:00]} 9. a3 {[%clk 0:02:53.3]} 9... Be7 {[%clk 0:02:59.9]} 10. Bf2
{[%clk 0:02:52.4]} 10... Qc7 {[%clk 0:03:00.4]} 11. Qf3 {[%clk 0:02:53.1]} 11...
b5 {[%clk 0:03:01]} 12. O-O-O {[%clk 0:02:53.4]} 12... Bb7 {[%clk 0:03:00.6]}
13. g4 {[%clk 0:02:53.9]} 13... d5 {[%clk 0:03:01.2]} 14. e5 {[%clk 0:02:33.3]}
14... Ne4 {[%clk 0:03:00.6]} 15. Nxe4 {[%clk 0:02:28]} 15... dxe4 {[%clk
0:03:01.5]} 16. Qe3 {[%clk 0:02:28.3]} 16... Nc6 {[%clk 0:03:02]} 17. Bg2 {[%clk
0:02:21.8]} 17... Nxd4 {[%clk 0:02:56.5]} 18. Qxd4 {[%clk 0:02:14.5]} 18... Rc8
{[%clk 0:02:55.8]} 19. Bxe4 {[%clk 0:02:04.9]} 19... O-O {[%clk 0:02:49.8]} 20.
c3 {[%clk 0:01:51.5]} 20... Bxe4 {[%clk 0:02:47.4]} 21. Qxe4 {[%clk 0:01:49.9]}
21... Bxa3 {[%clk 0:02:47.9]} 22. bxa3 {[%clk 0:01:47.1]} 22... Qxc3+ {[%clk
0:02:47.7]} 23. Kb1 {[%clk 0:01:47]} 23... Qb3+ {[%clk 0:02:47.8]} 24. Ka1
{[%clk 0:01:46.9]} 24... Qxa3+ {[%clk 0:02:47.8]} 25. Kb1 {[%clk 0:01:46.9]}
25... Qb3+ {[%clk 0:02:48.7]} 26. Ka1 {[%clk 0:01:47.4]} 26... Rc2 {[%clk
0:02:45.8]} 0-1

[Event "*** Titled Tuesday Blitz"]
[Site "Chess.com"]
[Date "2020.05.12"]
[Round "3"]
[White "Ranindu2003"]
[Black "Alexander_Zubov"]
[Result "0-1"]
[WhiteElo "2444"]
[BlackElo "2837"]
[TimeControl "180+1"]
[EndTime "10:24:44 PDT"]
[Termination "Alexander_Zubov won by resignation"]

1. e4 {[%clk 0:02:59.8]} 1... c5 {[%clk 0:02:58.8]} 2. Nf3 {[%clk 0:03:00]} 2...
d6 {[%clk 0:02:58.6]} 3. d4 {[%clk 0:03:00.3]} 3... cxd4 {[%clk 0:02:58.7]} 4.
Nxd4 {[%clk 0:03:01.2]} 4... Nf6 {[%clk 0:02:58.6]} 5. Nc3 {[%clk 0:03:01.5]}
5... a6 {[%clk 0:02:58.6]} 6. Be3 {[%clk 0:03:01.1]} 6... e5 {[%clk 0:02:58]} 7.
Nb3 {[%clk 0:03:01.1]} 7... Be6 {[%clk 0:02:56.8]} 8. f3 {[%clk 0:03:00.4]} 8...
h5 {[%clk 0:02:56.1]} 9. Nd5 {[%clk 0:03:00.4]} 9... Bxd5 {[%clk 0:02:52.7]} 10.
exd5 {[%clk 0:03:01.3]} 10... Nbd7 {[%clk 0:02:49.7]} 11. Qd2 {[%clk 0:03:00.7]}
11... Qc7 {[%clk 0:02:41.6]} 12. Be2 {[%clk 0:02:59.4]} 12... Nb6 {[%clk
0:02:24]} 13. Bxb6 {[%clk 0:01:48.7]} 13... Qxb6 {[%clk 0:02:23.5]} 14. c4
{[%clk 0:01:46.1]} 14... g6 {[%clk 0:02:17.4]} 15. Rc1 {[%clk 0:01:41.7]} 15...
Bh6 {[%clk 0:02:14.4]} 16. Qc2 {[%clk 0:01:38.2]} 16... Bxc1 {[%clk 0:02:11.1]}
17. Qxc1 {[%clk 0:01:39.1]} 17... O-O {[%clk 0:02:04.6]} 18. Qg5 {[%clk
0:01:38.1]} 18... Kg7 {[%clk 0:02:03.2]} 19. g4 {[%clk 0:01:32.8]} 19... hxg4
{[%clk 0:02:00.5]} 20. fxg4 {[%clk 0:01:33.7]} 20... Ne4 {[%clk 0:01:58.7]} 21.
Qd2 {[%clk 0:01:28.9]} 21... Qf2+ {[%clk 0:01:55.9]} 22. Kd1 {[%clk 0:01:28.1]}
22... Nxd2 {[%clk 0:01:55.5]} 0-1

[Event "*** Titled Tuesday Blitz"]
[Site "Chess.com"]
[Date "2020.05.12"]
[Round "3"]
[White "kingmonkey2006"]
[Black "kismet6"]
[Result "0-1"]
[WhiteElo "2657"]
[BlackElo "1931"]
[TimeControl "180+1"]
[EndTime "10:24:47 PDT"]
[Termination "kismet6 won by checkmate"]

1. e4 {[%clk 0:01:29.9]} 1... c5 {[%clk 0:02:55.2]} 2. Nf3 {[%clk 0:01:29.4]}
2... Nc6 {[%clk 0:02:54.8]} 3. d4 {[%clk 0:01:29.4]} 3... cxd4 {[%clk
0:02:53.6]} 4. Nxd4 {[%clk 0:01:30.3]} 4... Qb6 {[%clk 0:02:53.6]} 5. Nb3 {[%clk
0:01:29.4]} 5... Nf6 {[%clk 0:02:53.2]} 6. Be3 {[%clk 0:01:29.6]} 6... Qb4+
{[%clk 0:02:53.2]} 7. c3 {[%clk 0:01:30.1]} 7... Qxe4 {[%clk 0:02:53]} 8. N1d2
{[%clk 0:01:31]} 8... Qg4 {[%clk 0:02:53]} 9. f3 {[%clk 0:01:30.5]} 9... Qe6
{[%clk 0:02:52.3]} 10. Kf2 {[%clk 0:01:29.2]} 10... Nd5 {[%clk 0:02:45.1]} 11.
Bg5 {[%clk 0:01:09.9]} 11... h6 {[%clk 0:02:40.6]} 12. Nc5 {[%clk 0:01:10]}
12... Qe5 {[%clk 0:02:06.8]} 13. f4 {[%clk 0:00:52.4]} 13... Qe3# {[%clk
0:02:04.3]} 0-1

[Event "*** Titled Tuesday Blitz"]
[Site "Chess.com"]
[Date "2020.05.12"]
[Round "3"]
[White "korbul"]
[Black "Boninknights"]
[Result "1-0"]
[WhiteElo "2576"]
[BlackElo "2240"]
[TimeControl "180+1"]
[EndTime "10:24:49 PDT"]
[Termination "korbul won by resignation"]

1. d4 {[%clk 0:03:00.9]} 1... Nf6 {[%clk 0:02:59.2]} 2. c4 {[%clk 0:03:00.5]}
2... c5 {[%clk 0:02:58.5]} 3. d5 {[%clk 0:03:00.2]} 3... b5 {[%clk 0:02:58.1]}
4. a4 {[%clk 0:02:59.8]} 4... bxc4 {[%clk 0:02:56.4]} 5. Nc3 {[%clk 0:02:59.3]}
5... d6 {[%clk 0:02:54.9]} 6. e4 {[%clk 0:02:59.2]} 6... g6 {[%clk 0:02:54.5]}
7. Bxc4 {[%clk 0:02:59]} 7... Ba6 {[%clk 0:02:52.5]} 8. Bb5+ {[%clk 0:02:58.6]}
8... Bxb5 {[%clk 0:02:51.4]} 9. axb5 {[%clk 0:02:58.1]} 9... Bg7 {[%clk
0:02:50.7]} 10. Nf3 {[%clk 0:02:57.7]} 10... O-O {[%clk 0:02:50.2]} 11. O-O
{[%clk 0:02:57.1]} 11... Nbd7 {[%clk 0:02:48.8]} 12. h3 {[%clk 0:02:56.8]} 12...
Qb6 {[%clk 0:02:45.3]} 13. Ra6 {[%clk 0:02:50.7]} 13... Qb7 {[%clk 0:02:44]} 14.
Qa4 {[%clk 0:02:48.1]} 14... Nb6 {[%clk 0:02:36.2]} 15. Qa2 {[%clk 0:02:46.8]}
15... Ne8 {[%clk 0:02:34.8]} 16. Bg5 {[%clk 0:02:43]} 16... Nc7 {[%clk
0:02:27.6]} 17. Ra5 {[%clk 0:02:41.7]} 17... Rfe8 {[%clk 0:02:23.2]} 18. Ra1
{[%clk 0:02:39.7]} 18... e6 {[%clk 0:02:16.8]} 19. Rxa7 {[%clk 0:02:33.4]} 19...
Rxa7 {[%clk 0:02:14.6]} 20. Qxa7 {[%clk 0:02:32.2]} 20... Qxa7 {[%clk
0:02:11.7]} 21. Rxa7 {[%clk 0:02:30.8]} 21... Bxc3 {[%clk 0:02:06]} 22. bxc3
{[%clk 0:02:24.8]} 22... Nca8 {[%clk 0:01:59.1]} 23. dxe6 {[%clk 0:02:19.1]}
23... Rxe6 {[%clk 0:01:58]} 24. Nd2 {[%clk 0:02:15.4]} 24... Kg7 {[%clk
0:01:52.7]} 25. Bd8 {[%clk 0:02:02.6]} 25... d5 {[%clk 0:01:47]} 26. exd5 {[%clk
0:01:55.9]} 26... Rd6 {[%clk 0:01:44.1]} 27. Bxb6 {[%clk 0:01:54.9]} 27... Nxb6
{[%clk 0:01:42.5]} 28. c4 {[%clk 0:01:55]} 28... Kf6 {[%clk 0:01:39.2]} 29. Ne4+
{[%clk 0:01:52.2]} 1-0

[Event "*** Titled Tuesday Blitz"]
[Site "Chess.com"]
[Date "2020.05.12"]
[Round "3"]
[White "Hippotaner"]
[Black "FGHSMN"]
[Result "1-0"]
[WhiteElo "2348"]
[BlackElo "2514"]
[TimeControl "180+1"]
[EndTime "10:24:53 PDT"]
[Termination "Hippotaner won by resignation"]

1. e4 {[%clk 0:03:00.4]} 1... c5 {[%clk 0:02:59.8]} 2. Nf3 {[%clk 0:02:58.7]}
2... d6 {[%clk 0:03:00]} 3. g3 {[%clk 0:02:56.1]} 3... Nf6 {[%clk 0:02:58.9]} 4.
d3 {[%clk 0:02:56]} 4... Nc6 {[%clk 0:02:58.7]} 5. Bg2 {[%clk 0:02:56.5]} 5...
g6 {[%clk 0:02:59.1]} 6. O-O {[%clk 0:02:56.7]} 6... Bg7 {[%clk 0:02:59.8]} 7.
a4 {[%clk 0:02:55.9]} 7... O-O {[%clk 0:02:59.3]} 8. c3 {[%clk 0:02:55.2]} 8...
e5 {[%clk 0:02:55.3]} 9. Na3 {[%clk 0:02:54.1]} 9... a6 {[%clk 0:02:46.7]} 10.
Nc4 {[%clk 0:02:50.9]} 10... Rb8 {[%clk 0:02:44.6]} 11. a5 {[%clk 0:02:51.3]}
11... Be6 {[%clk 0:02:42.6]} 12. Nfd2 {[%clk 0:02:48]} 12... d5 {[%clk
0:02:27.5]} 13. exd5 {[%clk 0:02:47.7]} 13... Bxd5 {[%clk 0:02:21.1]} 14. Bxd5
{[%clk 0:02:47.8]} 14... Qxd5 {[%clk 0:02:21]} 15. Qf3 {[%clk 0:02:48.3]} 15...
Rbd8 {[%clk 0:02:08.7]} 16. Qxd5 {[%clk 0:02:45.8]} 16... Rxd5 {[%clk
0:02:07.6]} 17. Ne4 {[%clk 0:02:43.1]} 17... Rb8 {[%clk 0:01:31.2]} 18. Nb6
{[%clk 0:02:38.8]} 18... Rxd3 {[%clk 0:01:28.1]} 19. Nxc5 {[%clk 0:02:39]} 19...
Rd6 {[%clk 0:01:24.8]} 20. Nc4 {[%clk 0:02:26.1]} 20... Rd5 {[%clk 0:01:23]} 21.
b4 {[%clk 0:02:23.1]} 21... Bf8 {[%clk 0:01:13.7]} 22. Nb6 {[%clk 0:02:22.5]}
22... Rd6 {[%clk 0:01:07.5]} 23. Be3 {[%clk 0:02:16.5]} 23... Rbd8 {[%clk
0:01:06.5]} 24. Nxb7 {[%clk 0:02:14.2]} 1-0

[Event "*** Titled Tuesday Blitz"]
[Site "Chess.com"]
[Date "2020.05.12"]
[Round "3"]
[White "viditchess"]
[Black "cassoulet"]
[Result "1-0"]
[WhiteElo "2949"]
[BlackElo "2661"]
[TimeControl "180+1"]
[EndTime "10:25:00 PDT"]
[Termination "viditchess won by resignation"]

1. d4 {[%clk 0:03:00.9]} 1... Nf6 {[%clk 0:02:57.9]} 2. c4 {[%clk 0:03:00.9]}
2... e6 {[%clk 0:02:58.1]} 3. Nc3 {[%clk 0:02:59.5]} 3... d5 {[%clk 0:02:58.4]}
4. cxd5 {[%clk 0:02:58.9]} 4... exd5 {[%clk 0:02:58.1]} 5. Bg5 {[%clk
0:02:59.1]} 5... Be7 {[%clk 0:02:58.6]} 6. e3 {[%clk 0:02:59.2]} 6... Nbd7
{[%clk 0:02:58.9]} 7. Bd3 {[%clk 0:02:58.3]} 7... c6 {[%clk 0:02:58.5]} 8. Qc2
{[%clk 0:02:55.1]} 8... Nh5 {[%clk 0:02:58.4]} 9. Bxe7 {[%clk 0:02:54.9]} 9...
Qxe7 {[%clk 0:02:59.3]} 10. O-O-O {[%clk 0:02:54.7]} 10... g6 {[%clk 0:02:59.5]}
11. Nf3 {[%clk 0:02:52.3]} 11... Nb6 {[%clk 0:02:59.2]} 12. Kb1 {[%clk
0:02:50.6]} 12... Ng7 {[%clk 0:02:56.5]} 13. Rhe1 {[%clk 0:02:39.8]} 13... f5
{[%clk 0:02:53.3]} 14. h3 {[%clk 0:02:26.8]} 14... Be6 {[%clk 0:02:51]} 15. Na4
{[%clk 0:02:17.2]} 15... Nxa4 {[%clk 0:02:45.2]} 16. Qxa4 {[%clk 0:02:18.1]}
16... O-O {[%clk 0:02:43]} 17. Ne5 {[%clk 0:02:14.4]} 17... Rfc8 {[%clk
0:02:39.9]} 18. f4 {[%clk 0:02:06.3]} 18... Ne8 {[%clk 0:02:39]} 19. g4 {[%clk
0:02:04.9]} 19... Nd6 {[%clk 0:02:38.5]} 20. Qa3 {[%clk 0:02:00.1]} 20... Qf8
{[%clk 0:02:29.9]} 21. Rg1 {[%clk 0:01:58.1]} 21... Kh8 {[%clk 0:02:27.1]} 22.
gxf5 {[%clk 0:01:44.1]} 22... Bxf5 {[%clk 0:02:26.4]} 23. Qxd6 {[%clk
0:01:33.5]} 23... Qxd6 {[%clk 0:02:06.3]} 24. Nf7+ {[%clk 0:01:32.5]} 24... Kg7
{[%clk 0:02:05.3]} 25. Nxd6 {[%clk 0:01:32.9]} 25... Bxd3+ {[%clk 0:02:05.5]}
26. Rxd3 {[%clk 0:01:33.8]} 26... Rc7 {[%clk 0:02:00.9]} 27. Nf5+ {[%clk
0:01:28.2]} 27... Kf6 {[%clk 0:01:56.3]} 28. Ng3 {[%clk 0:01:28.7]} 28... Re8
{[%clk 0:01:55.9]} 29. Kc2 {[%clk 0:01:28.1]} 29... Rce7 {[%clk 0:01:55.4]} 30.
Kd2 {[%clk 0:01:28.2]} 1-0

[Event "*** Titled Tuesday Blitz"]
[Site "Chess.com"]
[Date "2020.05.12"]
[Round "3"]
[White "zala02"]
[Black "Gurvich_Vitaly"]
[Result "0-1"]
[WhiteElo "2244"]
[BlackElo "2562"]
[TimeControl "180+1"]
[EndTime "10:25:00 PDT"]
[Termination "Gurvich_Vitaly won by resignation"]

1. d4 {[%clk 0:03:00.9]} 1... d5 {[%clk 0:02:56.6]} 2. c4 {[%clk 0:03:00.7]}
2... dxc4 {[%clk 0:02:57.5]} 3. e4 {[%clk 0:02:57.7]} 3... Nc6 {[%clk
0:02:55.5]} 4. Be3 {[%clk 0:02:23]} 4... Nf6 {[%clk 0:02:53.1]} 5. Nc3 {[%clk
0:02:22.1]} 5... e5 {[%clk 0:02:50.8]} 6. d5 {[%clk 0:02:00.6]} 6... Ne7 {[%clk
0:02:50.3]} 7. Bxc4 {[%clk 0:01:59.3]} 7... Ng6 {[%clk 0:02:50.1]} 8. Nge2
{[%clk 0:01:54.9]} 8... Bd6 {[%clk 0:02:49.5]} 9. Kf1 {[%clk 0:01:45]} 9... a6
{[%clk 0:02:48.7]} 10. a4 {[%clk 0:01:42.1]} 10... O-O {[%clk 0:02:47.5]} 11. h4
{[%clk 0:01:40.7]} 11... h6 {[%clk 0:02:45.8]} 12. g3 {[%clk 0:01:16]} 12... Ng4
{[%clk 0:02:43.2]} 13. Qd2 {[%clk 0:01:11.6]} 13... f5 {[%clk 0:02:42.4]} 14.
exf5 {[%clk 0:01:01.6]} 14... Bxf5 {[%clk 0:02:43.3]} 15. Kg2 {[%clk 0:01:00.2]}
15... Qf6 {[%clk 0:02:41.3]} 16. Raf1 {[%clk 0:00:46.4]} 16... e4 {[%clk
0:02:34.8]} 17. Bf4 {[%clk 0:00:35.9]} 17... N6e5 {[%clk 0:02:28.4]} 18. Nd4
{[%clk 0:00:24.9]} 18... Nxc4 {[%clk 0:02:27.8]} 0-1